Cogmind - Beta 16 @@@ ROGUE MODE // 2026.01.30 @ 09:58:48 Player: PE-P51 Result: Destroyed by S-10 Pest with Light Assault Rifle Performance ------------- Evolutions (0) 0 Regions Visited (4) 800 Robots Destroyed (25) 125 Value Destroyed (486) 486 Prototype IDs (23) 460 Alien Tech Used (0) 0 Bonus (300) 300 TOTAL SCORE: 2171 Bonus ------- Aligned with FarCom 300 Cogmind --------- Core Integrity 0/250 Matter 271/300 Energy 265/265 System Corruption 0% Temperature Cool (0) Movement Treading (160) Location -9/Mines Parts ------- > --- POWER (1) -------- Improved Ion Engine > --- PROPULSION (2) --- Light Treads Light Treads > --- UTILITY (2) ------ Large Storage Unit Sensor Array > --- WEAPON (2) ------- Heavy Assault Rifle Autogun > --- INVENTORY (15) --- Light Treads Cooling System Cooling System 0b10 Alert Chip Supersonic Drone Bay (1/1) EM Shotgun Beam Rifle Beam Rifle Beam Rifle Beam Rifle Heavy Assault Rifle Heavy Assault Rifle Mining Laser Hammer Longsword +1 Peak State ------------ > --- POWER ------------ Improved Ion Engine > --- PROPULSION ------- Light Treads Light Treads > --- UTILITY ---------- Large Storage Unit Sensor Array > --- WEAPON ----------- Heavy Assault Rifle Heavy Assault Rifle > --- INVENTORY -------- Light Treads Cooling System Cooling System 0b10 Alert Chip Supersonic Drone Bay EM Pulse Gun Beam Rifle Beam Rifle Beam Rifle Beam Rifle Heavy Assault Rifle Heavy Assault Rifle Mining Laser Hammer Longsword +1 [Rating: 14] Favorites ----------- Power Light Ion Engine Engine Light Ion Engine Propulsion Aluminum Leg Treads Light Treads Leg Aluminum Leg Utility Sensor Array Device Sensor Array Storage Large Storage Unit Weapon Heavy Assault Rifle Energy Gun EM Pulse Gun Ballistic Gun Heavy Assault Rifle Build | -11 -10 -10 -10 -9 ------- Run | Yrd Mat Min Exi Min Slots Evolved . | . . . . . Power . | . . . . . Propulsion . | . . . . . Utility . | . . . . . Weapon . | . . . . . Parts Attached 16 | . 4 8 . 4 Power 5 | . . 3 . 2 Engine 5 | . . 3 . 2 Core . | . . . . . Reactor . | . . . . . Propulsion 2 | . . 2 . . Treads 2 | . . 2 . . Leg . | . . . . . Wheel . | . . . . . Hover . | . . . . . Flight . | . . . . . Utility 3 | . 2 . . 1 Device 2 | . 1 . . 1 Storage 1 | . 1 . . . Processor . | . . . . . Hackware . | . . . . . Protection . | . . . . . Artifact . | . . . . . Weapon 6 | . 2 3 . 1 Energy Gun . | . . . . . Energy Cannon . | . . . . . Ballistic Gun 6 | . 2 3 . 1 Ballistic Cannon . | . . . . . Launcher . | . . . . . Special Weapon . | . . . . . Impact Weapon . | . . . . . Slashing Weapon . | . . . . . Piercing Weapon . | . . . . . Special Melee Weapon . | . . . . . Unidentified Prototypes . | . . . . . Parts Lost 6 | . . 4 . 2 Power 3 | . . 2 . 1 Propulsion 1 | . . 1 . . Utility 1 | . . . . 1 Weapon 1 | . . 1 . . Highest Loss Streak 3 | . . 3 . 2 To Critical Strikes . | . . . . . Average Backups 11 | . 9 14 14 15 Power . | . 1 . . . Propulsion 1 | . 2 1 1 1 Utility 1 | . . 2 2 4 Weapon 7 | . 5 10 10 10 Tool/Special . | . . . . . Unused Backups 27 | . 8 3 1 15 Power 2 | . 1 1 . . Propulsion 4 | . 2 1 . 1 Utility 6 | . 1 1 . 4 Weapon 15 | . 4 . 1 10 Tool/Special . | . . . . . Average Slot Usage (%) 95 | . 92 97 100 95 Engine 13 | . 14 12 14 12 Treads 9 | . . 8 28 28 Leg 18 | . 28 19 . . Device 9 | . 7 14 14 11 Storage 14 | . 14 14 14 14 Energy Gun 3 | . 6 . . . Ballistic Gun 24 | . 21 27 28 28 Peak Build Rating 14 | . 11 12 14 14 Average Rating 10 | . 8 11 12 13 On Entrance 9 | 6 6 11 12 14 Avg Prop Armor Cover (%) . | . . . . . Naked Turns . | . . . . . Heaviest Build 34 | 11 30 34 34 34 Greatest Support 40 | 20 20 40 40 40 Greatest Overweight (x) 2 | . 1 2 . . Average Overweight (x) . | . . . . . Largest Inventory Capacity 15 | . 15 15 15 15 Average Capacity 12 | . 10 15 15 15 Most Carried 15 | . 15 15 15 15 Average Carried 11 | . 9 14 14 15 Final Capacity 15 | 8 15 15 15 15 Final Carried 15 | 6 15 14 15 15 Class Distribution -------------------- 90% | Mutant 9% | Skirmisher Dominant Class ---------------- Mutant | -10/Materials Mutant | -10/Mines Mutant | -10/Exiles Skirmisher | -9/Mines Resources | -11 -10 -10 -10 -9 ----------- Run | Yrd Mat Min Exi Min Matter Collected 551 | 200 133 120 . 98 Remotely . | . . . . . Salvage Created 707 | . 403 170 . 134 Parts 52 | . 34 11 . 7 Haulers Intercepted 2 | . 2 . . . Recyclers Shooed . | . . . . . Parts Field Recycled . | . . . . . Retrieved Matter . | . . . . . Parts Self-Destructed . | . . . . . Prevented . | . . . . . Parts Restored . | . . . . . Kills | -11 -10 -10 -10 -9 ------- Run | Yrd Mat Min Exi Min Combat Hostiles Destroyed 21 | . 13 5 . 3 Guns 20 | . 12 5 . 3 AOE 1 | . 1 . . . Classes Destroyed 7 | . 4 2 . 1 Builder 1 | . . 1 . . Hauler 2 | . 2 . . . Watcher 1 | . 1 . . . Swarmer 12 | . 9 3 . . Grunt 6 | . 4 . . 2 Duelist 1 | . . . . 1 Sentry 2 | . . 2 . . Best Kill Streak 4 | . 4 3 . 3 Combat Bots Only 4 | . 4 3 . 3 Max Kills in Single Turn 2 | . 1 2 . 1 Gunslinging . | . . . . . Exploded 1 | . 1 . . . Melee . | . . . . . Uniques/NPCs Destroyed . | . . . . . Combat | -11 -10 -10 -10 -9 -------- Run | Yrd Mat Min Exi Min Hostile Shots Fired 119 | . 41 39 . 39 Missed 23 | . 11 10 . 2 Hits 96 | . 30 29 . 37 Melee 4 | . . . . 4 Projectile 92 | . 30 29 . 33 Critical Strikes 3 | . . 2 . 1 Damage Taken 1103 | . 265 371 . 467 Core 255 | . 45 43 . 167 Absorbed by Shields . | . . . . . Core Remaining (%) 100 | 100 . . . . Volleys Fired 64 | . 37 12 . 15 Largest 2 | . 2 2 . 2 Hottest 63 | . 63 46 . 46 Shots Fired 123 | . 71 22 . 30 Gun 123 | . 71 22 . 30 Cannon . | . . . . . Launcher . | . . . . . Special . | . . . . . Kinetic 93 | . 41 22 . 30 Thermal . | . . . . . Explosive . | . . . . . Electromagnetic 30 | . 30 . . . Robot Hit Streak 10 | . 5 4 . 10 Robot Miss Streak 6 | . 6 3 . 1 Penetration Max . | . . . . . Secondary Targets 2 | . 1 . . 1 Max Gunslinging Chain 1 | . 1 . . 1 Shots Hit Robots 74 | . 37 12 . 25 Core Hits 34 | . 20 8 . 6 Critical Kills . | . . . . . Critical Parts Destroyed . | . . . . . Critical Strikes 1 | . 1 . . . Corrupt 1 | . 1 . . . Melee Attacks . | . . . . . Impact . | . . . . . Slashing . | . . . . . Piercing . | . . . . . Sneak Attacks . | . . . . . Combat Hostiles . | . . . . . Follow-up Attacks . | . . . . . Damage Inflicted 1217 | . 588 276 . 353 Guns 1107 | . 501 256 . 350 Cannons . | . . . . . Explosions 77 | . 77 . . . Melee . | . . . . . Ramming 33 | . 10 20 . 3 Kinetic 929 | . 323 256 . 350 Thermal 77 | . 77 . . . Explosive . | . . . . . Electromagnetic 178 | . 178 . . . Impact . | . . . . . Slashing . | . . . . . Piercing . | . . . . . Highest Corruption . | . . . . . Average Corruption . | . . . . . Corruption Purged . | . . . . . Corruption Blocked . | . . . . . Overload Shots . | . . . . . Overflow Damage . | . . . . . Projectiles . | . . . . . Explosions . | . . . . . Melee . | . . . . . Knockbacks . | . . . . . Impact . | . . . . . Kinetic . | . . . . . Secondary . | . . . . . Self-Inflicted Damage . | . . . . . Shots . | . . . . . Rammed 1 | . . . . 1 Targets Rammed 6 | . 2 3 . 1 Kicked 5 | . 2 3 . . Crushed . | . . . . . Highest Temperature 44 | . 44 31 . 16 Average Temperature 13 | . 15 11 . 4 Received Heat Transfer 333 | . 54 135 . 144 Siege Activations . | . . . . . Martial Activations . | . . . . . Shielding Activations . | . . . . . Robots Disrupted . | . . . . . Combat Hostiles . | . . . . . Robots Corrupted . | . . . . . Combat Hostiles . | . . . . . Parts Fried . | . . . . . Impact Corruptions . | . . . . . Robots Melted . | . . . . . Combat Hostiles . | . . . . . Parts Melted . | . . . . . Heat Transferred 50 | . 50 . . . Parts Sabotaged . | . . . . . Parts Stolen . | . . . . . Parts Stripped . | . . . . . Power Chain Reactions 2 | . 2 . . . Alert | -11 -10 -10 -10 -9 ------- Run | Yrd Mat Min Exi Min Maximum Alert Level . | . . . . . Low Security (%) 100 | . 100 100 . 100 Level 1 . | . . . . . Level 2 . | . . . . . Level 3 . | . . . . . Level 4 . | . . . . . Level 5 . | . . . . . High Security . | . . . . . Max Security . | . . . . . Peak Influence 168 | . 168 70 . 50 Initial . | . . . . . Average 41 | . 55 16 . 10 Influence Increases 568 | . 382 116 . 70 Destroy 0b10 Robot/C 420 | . 260 100 . 60 Destroy 0b10 Robot/NC 20 | . 15 5 . . Destroy Leader 76 | . 56 10 . 10 Successful Hack 15 | . 15 . . . Destroy Structure 7 | . 6 1 . . Lose Combat Pursuer 30 | . 30 . . . Influence Decreases 568 | . 382 116 . 70 Time Decay 548 | . 382 106 . 60 Lost Part 20 | . . 10 . 10 Squads Dispatched 2 | . 2 . . . Investigation 1 | . 1 . . . Extermination . | . . . . . Reinforcement 1 | . 1 . . . Assault . | . . . . . Garrison . | . . . . . Intercept . | . . . . . Searches Triggered . | . . . . . Construction Impeded . | . . . . . Haulers Reinforced . | . . . . . Active Scanning Responses . | . . . . . Cargo Convoy Interrupts . | . . . . . Stealth | -11 -10 -10 -10 -9 --------- Run | Yrd Mat Min Exi Min Distress Signals 2 | . 2 . . . Communications Jammed . | . . . . . Distress Signals . | . . . . . Times Spotted 34 | . 23 5 . 6 Peak Tracking Total 6 | . 6 3 . 3 Tactical Retreats 1 | . 1 . . . Traps | -11 -10 -10 -10 -9 ------- Run | Yrd Mat Min Exi Min Traps Triggered 1 | . 1 . . . Indirectly . | . . . . . Trap Hack Attempts . | . . . . . Triggered . | . . . . . Disarmed . | . . . . . Reprogrammed 4 | . 4 . . . Reused . | . . . . . Traps Extracted . | . . . . . Installed . | . . . . . Triggered . | . . . . . Machines | -11 -10 -10 -10 -9 ---------- Run | Yrd Mat Min Exi Min Machines Disabled . | . . . . . Max in Single Turn . | . . . . . Machines Repaired . | . . . . . Machines Dismantled . | . . . . . Machines Sabotaged . | . . . . . Overloaded Fab Kills . | . . . . . Hacking | -11 -10 -10 -10 -9 --------- Run | Yrd Mat Min Exi Min Machines Accessed 8 | . 7 . 1 . Terminals 7 | . 7 . . . Fabricators . | . . . . . Repair Stations . | . . . . . Recycling Units . | . . . . . Scanalyzers . | . . . . . Garrison Access . | . . . . . Total Hacks 33 | . 32 . 1 . Successful 16 | . 15 . 1 . Failed 16 | . 16 . . . Catastrophic 1 | . 1 . . . Database Lockouts 1 | . 1 . . . Manual 26 | . 25 . 1 . Terminals 32 | . 32 . . . Fabricators . | . . . . . Repair Stations . | . . . . . Recycling Units . | . . . . . Scanalyzers . | . . . . . Garrison Access . | . . . . . Terminal Hacks 5 | . 4 . 1 . Robot Analysis 1 | . 1 . . . Terminal Index 1 | . 1 . . . Locate Traps 1 | . 1 . . . Reprogram Traps 1 | . 1 . . . Proto ID Catalog 1 | . . . 1 . Fabricator Hacks . | . . . . . Repair Station Hacks . | . . . . . Recycling Unit Hacks . | . . . . . Scanalyzer . | . . . . . Garrison Access Hacks . | . . . . . Unauthorized Hacks 10 | . 10 . . . Terminals 10 | . 10 . . . Botnet 5 | . 5 . . . Skim 5 | . 5 . . . Fabricators . | . . . . . Repair Stations . | . . . . . Recycling Units . | . . . . . Scanalyzers . | . . . . . Garrison Access . | . . . . . Data Cores Recovered . | . . . . . Used . | . . . . . Hacking Detections 7 | . 7 . . . Full Trace Events . | . . . . . Feedback Events . | . . . . . Feedback Blocked . | . . . . . Robot Schematics Acquired . | . . . . . Robots Built . | . . . . . Authchips . | . . . . . Time . | . . . . . Total Robot Build Rating . | . . . . . Part Schematics Acquired . | . . . . . Parts Built . | . . . . . Authchips . | . . . . . Time . | . . . . . Total Part Build Rating . | . . . . . Part Studies Acquired . | . . . . . Parts Repaired . | . . . . . Time . | . . . . . Parts Recycled . | . . . . . Recycled Matter . | . . . . . Retrieved Matter . | . . . . . Retrieved Components . | . . . . . Parts Scanalyzed . | . . . . . Part Schematics Acquired . | . . . . . Parts Damaged . | . . . . . Bothacking | -11 -10 -10 -10 -9 ------------ Run | Yrd Mat Min Exi Min Used RIF Installer . | . . . . . Robots Hacked . | . . . . . Non-combat . | . . . . . Combat . | . . . . . Robot Hacks Applied . | . . . . . Relay Couplers Released . | . . . . . Fabnet Peak Effective % . | . . . . . Robots Rewired . | . . . . . Allies Hacked . | . . . . . Hacks Repelled . | . . . . . Allies | -11 -10 -10 -10 -9 -------- Run | Yrd Mat Min Exi Min Total Allies . | . . . . . Largest Group . | . . . . . Highest-Rated Group . | . . . . . Highest-Rated Ally . | . . . . . Total Orders . | . . . . . Ally Attacks . | . . . . . Total Damage . | . . . . . Kills . | . . . . . Allies Corrupted . | . . . . . Allies Melted . | . . . . . Intel | -11 -10 -10 -10 -9 ------- Run | Yrd Mat Min Exi Min Active Infowar (turns) 1621 | . 678 339 375 229 Sensors 1621 | . 678 339 375 229 Robot Analysis Total 1 | . 1 . . . Derelict Logs Recovered 1 | . . 1 . . Drone Launches . | . . . . . Drone Recoveries . | . . . . . Exploration | -11 -10 -10 -10 -9 ------------- Run | Yrd Mat Min Exi Min Turns Passed 2292 | . 1285 339 375 293 Spaces Moved 1368 | 1 831 157 232 147 Core . | . . . . . Treads 436 | . . 57 232 147 Legs 932 | 1 831 100 . . Wheels . | . . . . . Hover . | . . . . . Flight . | . . . . . Fastest Speed 120 | 120 120 160 160 160 Average Speed 148 | 120 136 180 160 160 Slowest Speed 260 | 120 190 260 160 160 Overloaded Moves . | . . . . . Propulsion Burnouts . | . . . . . Robots Hopped . | . . . . . Potential Cave-ins . | . . . . . Cave-ins Triggered . | . . . . . Exploration Rate (%) 43 | 2 98 21 60 35 Regions Visited 4 Branch Regions 3 Pre-discovered Areas 1 | . . . . 1 Known Exits Taken 2 | . 1 . 1 . Unknown Exits Taken 2 | 1 . 1 . . Scrap Searched 3 | . . 1 . 2 Spaces Dug . | . . . . . Terrain Destroyed 5 | . 5 . . . Melee . | . . . . . Projectile . | . . . . . AOE 5 | . 5 . . . Terrain Rammed . | . . . . . Walls Destroyed . | . . . . . Machines Disabled . | . . . . . Actions | -11 -10 -10 -10 -9 --------- Run | Yrd Mat Min Exi Min Total 1513 | . 913 187 237 176 Wait 29 | . 19 4 1 5 Move 1364 | . 830 156 231 147 Hop . | . . . . . Pick Up 19 | . 14 1 3 1 Fast Attach 5 | . 1 2 . 2 Attach 2 | . . 2 . . Detach . | . . . . . Swap 9 | . 3 4 . 2 Drop 15 | . 7 3 2 3 Fire 64 | . 37 12 . 15 Melee . | . . . . . Ram . | . . . . . Kick 5 | . 2 3 . . Crush 1 | . . . . 1 Escape Stasis . | . . . . . Rewire . | . . . . . Trap . | . . . . . Miscellaneous . | . . . . . Route ------- -11/Scrapyard -10/Materials (discovered 6 exits: *Mat x3 / *Min x2 / *Sub) -10/Mines -10/Exiles (discovered 2 exits: *Min x2) -9/Mines History --------- Turn | Location | Event 1 | -11/Scrapyard | Discovered new exit (range 0) 1 | -11/Scrapyard | Entered Materials 2 | -10/Materials | Met a group of wandering Federalists 92 | -10/Materials | Discovered new exit (range 15) 191 | -10/Materials | Discovered new exit (range 10) 302 | -10/Materials | Central database locked down 304 | -10/Materials | Build established: Mutant 460 | -10/Materials | Discovered new exit (range 9) 720 | -10/Materials | Discovered new exit (range 11) 791 | -10/Materials | Discovered new exit (range 8) 802 | -10/Materials | Identified exit to Subcaves 855 | -10/Materials | Learned 4 Recycling zone layouts 900 | -10/Materials | Learned 4 Recycling zone layouts 964 | -10/Materials | Identified exit to Materials 964 | -10/Materials | Identified exit to Mines 1013 | -10/Materials | Learned location of 1 exit from Recycling 1051 | -10/Materials | Loaded intel: 8 terminal locations 1097 | -10/Materials | Learned location of 2 exits from Materials 1286 | -10/Materials | Entered Mines 1376 | -10/Mines | Found DCF Scrap (15 items) 1543 | -10/Mines | Lost 3 parts (1p1n1w) 1610 | -10/Mines | Deemed a non-threat by the Exiles lab entrance 1610 | -10/Mines | Discovered new exit (range 5) 1625 | -10/Mines | Entered Exiles 1626 | -10/Exiles | Identified exit to Mines 1665 | -10/Exiles | Met 8R-AWN 1691 | -10/Exiles | Met EX-HEX 1737 | -10/Exiles | Met EX-BIN 1755 | -10/Exiles | Aligned with FarCom system 1757 | -10/Exiles | Given EX-Vault access code 1808 | -10/Exiles | Opened EX-Vault 1821 | -10/Exiles | Found Longsword +1 1831 | -10/Exiles | Found Supersonic Drone Bay 1838 | -10/Exiles | Found 0b10 Alert Chip 1873 | -10/Exiles | Warned to stay clear of 0b10 Research branches 1877 | -10/Exiles | Exiles lab attacked by MAIN.C 2000 | -10/Exiles | Stole three prototypes: 0b10 Alert Chip, Supersonic Drone Bay, Longsword +1 2000 | -10/Exiles | Entered Mines 2008 | -9/Mines | Core integrity fell below 50% 2015 | -9/Mines | Core integrity fell below 20% 2270 | -9/Mines | Learned location of Storage (-8) 2293 | -9/Mines | Destroyed by S-10 Pest with Light Assault Rifle Last Messages --------------- 02094_ Found Imp. Ion Engine. 02094_ Found EMP Blaster. 02094_ Found 69 Matter. 02095_ K-01 Serf collects debris. 02098_ Dropped Hvy. Assault Rifle. 02099_ Acquired 10 matter. 02102_ K-01 Serf collects debris. 02102_ Dropped Ion Engine. 02110_ K-01 Serf collects debris. 02113_ Slammed into K-01 Serf. 02180_ K-01 Serf cleans the Laser Drill. 02270_ A derelict emerges from the shadows: "Are any of them following you? I'm here trying to lose some heat after our second raid on Storage failed. Whatever you do stay away from that place, they've tightened security following our previous successful raids." World map updated: -8/Storage. 02272_ IV-TVX(g): "We scattered so the Unaware couldn't effectively use their advantage in numbers, and I suggest you do the same." 02272_ IV-TVX(g) slips back into the shadows. 02290_ Destroyed Flight Unit. Map ----- +----------------------------------------------------+ | ??????????????????????????????????????????????# #? | | ?????????????????????????????????????###??????# #? | | ????????????????????????????????????## ##????# #? | | ????????????????????????????????????# #??### #? | | ????????????????????????????????????# ##?# #? | | ?????????????????????????????######## ### ###? | | ?????????????????????????????? ## #??? | | ?????????????????????????????????????# #??? | | ?????????????????????????????????????##### ####??? | | ????????????????# ???????????????????????# #?????? | | ???????????????## ?????????????????####### #?????? | | ??????????????## ????????????????# #?????? | | ???????????? ## ##??????????????# #######?????? | | ????????????? ?????????????# #???????????? | | ?????????????? ?????????????# #???????????? | | ???????????????# ???????###### #???????????? | | ????????????????# ???????# #???????????? | | ????????????????# ???????# ########?????????? | | ?????????????????# ??????# #?### ##????????? | | ??????????????????# ??????# ### #????????? | | ?????????????????## ####### ## #????????? | | ?????????????????# """ ##???????? | | ????????????????# ss """ #### #??? | | ???????????????# ##s####### """ #??? | | ??????????????# ?# #?????# #??? | | ?????????????# ??#@#????## ## ###???? | | ???????????? #??# ???# ##??#?????? | | ??????????? #?? #?# ? ##?? #?????? | | ??????????? #?? ##?# #### ###???? | | ???????????? #??# ####??## ##??? | | ???????????? ###?#### #???????## ##?? | | ????????????????### ###??#####?## ##? | | ???????????????## ##### ### #? | | ???????????????# #? | | ???????????????# ### ##? | | ???????????????# #???###?? | | ???????????????# ? ####### #??????? | | ???????????????#### ? ##?????#### #??????? | | ??????????????????#####?????????#### ##??????? | | ???????????????????????????????????## ##???????? | | ????????????????????????????????????#####????????? | | ?????????????????????????????????????????????????? | | ?????????????????????????????????????????????????? | | ?????????????????????????????????????????????????? | | ?????????????????????????????????????????????????? | | ?????????????????????????????????????????????????? | | ?????????????????????????????????????????????????? | | | | | | | +----------------------------------------------------+ Best States ------------- Heat Dissipation 25 Energy Generation 12 Energy Capacity 265 Matter Stores 300 Matter Capacity 300 Sight Range 16 Robot Scan Range 14 Terrain Scan Density 10 Evasion (%) 55 Recoil Reduction 2 Item Schematics ----------------- None Robot Schematics ------------------ None Fabricated ------------ Nothing Repaired ---------- Nothing Studied --------- None Alien Tech Used ----------------- None Achievements -------------- None Challenges ------------ None Game ------ Seed LauncherFlyingWand Manual? 0 Play Time 00:10:34 Cumulative 343.3 hours Start 2026.01.30 @ 09:48:40 End 2026.01.30 @ 09:58:48 Sessions 1 Manual Loads 0 Difficulty Rogue Special Mode None Game No. 424 Rogue 422 Adventurer 2 Explorer 0 Win Type - Total 4 Types 2/0/0/1/1/0/0/0/0/0 Lore% 81 Gallery% 71 Achievement% 62 Wizard Run 0 Options --------- Layout 0 ASCII 0 Keyboard 0 Movement Numpad Keybinds 0 Fullscreen 2 Font 24/Smallcaps Map View 76x50 Zoom Use 0% Tactical HUD 1 Map Filters NONE Filters NONE Steam 1 RUN: 8a6aa18c-1e0f-4455-8ff3-ef26b099f0b1